bitfinex/quotes_BTCUSD_20251231
["timestamp","ask_amount","ask_price","bid_price","bid_amount"]
[1767185493750,0.26076437,88811.0,88802.0,0.01128]
[1767185493954,0.26076437,88811.0,88803.0,0.03900768]
[1767185494303,0.26076437,88811.0,88802.0,0.01128]
[1767185498572,0.12794,88814.0,88802.0,0.010731]
[1767185498768,0.26076437,88812.0,88802.0,0.010731]
[1767185499179,0.12794,88814.0,88802.0,0.010731]
[1767185499380,0.26076437,88812.0,88802.0,0.010731]
[1767185500295,0.38870437,88812.0,88803.0,0.00785013]
[1767185501128,0.38870437,88812.0,88802.0,0.010731]
[1767185503064,0.26870437,88812.0,88802.0,0.010731]
[1767185503700,0.14076437,88812.0,88802.0,0.010731]
[1767185506397,0.00055,88802.0,88796.0,0.0002]
[1767185506618,0.26076437,88806.0,88797.0,0.02596529]
[1767185506827,0.26076437,88806.0,88797.0,0.1057]
[1767185507034,0.26076437,88810.0,88797.0,0.1057]
[1767185507197,0.12794,88811.0,88797.0,0.13272164]
[1767185507398,0.26076437,88810.0,88798.0,0.06756851]
[1767185507684,0.12794,88811.0,88798.0,0.01126151]
[1767185507799,0.26076437,88810.0,88799.0,0.03429725]
[1767185508225,0.26076437,88810.0,88799.0,0.04555863]
[1767185508773,0.12794,88819.0,88800.0,0.01126126]
[1767185508970,0.01128,88818.0,88810.0,0.000549]
[1767185509153,0.01128,88818.0,88803.0,0.05630382]
[1767185509352,0.01128,88818.0,88804.0,0.04097955]
[1767185510711,0.14412,88818.0,88803.0,0.01126088]
[1767185510903,0.14412,88818.0,88802.0,0.06756598]
[1767185511813,0.14412,88818.0,88803.0,0.01126088]
[1767185512034,0.14412,88818.0,88802.0,0.06756598]
[1767185512314,0.14412,88818.0,88802.0,0.011261]
[1767185512883,0.14412,88818.0,88803.0,0.01126088]
[1767185513084,0.14412,88818.0,88802.0,0.06756584]
[1767185513282,0.26094747,88820.0,88803.0,0.01882]
[1767185513488,0.01128,88817.0,88805.0,0.01882]
[1767185513886,0.01128,88817.0,88805.0,0.03008062]
[1767185514632,0.01128,88817.0,88805.0,0.01882]
[1767185516343,0.01128,88817.0,88806.0,0.0112605]
[1767185516542,0.13284,88819.0,88806.0,0.0112605]
[1767185516748,0.0001831,88820.0,88799.0,0.01128]
[1767185516922,0.0001831,88820.0,88774.0,1.12644972]
[1767185516923,3.1e-06,88820.0,88819.0,0.000549]
[1767185517325,3.1e-06,88820.0,88816.0,0.01744]
[1767185518510,3.1e-06,88820.0,88814.0,0.06755675]
[1767185518664,3.1e-06,88820.0,88813.0,0.0675575]
[1767185518863,3.1e-06,88820.0,88814.0,0.01125948]
[1767185519071,3.1e-06,88820.0,88814.0,0.06755683]
[1767185519691,3.1e-06,88820.0,88814.0,0.01125948]
[1767185520037,3.1e-06,88820.0,88815.0,0.01125935]
[1767185520783,0.01138608,88824.0,88815.0,0.01125935]
[1767185520784,0.01134532,88824.0,88818.0,0.06755385]
[1767185521016,0.01134532,88824.0,88816.0,0.01125923]
[1767185521017,0.01079632,88824.0,88816.0,0.01125923]
[1767185521162,0.01079632,88824.0,88816.0,0.06755483]
[1767185521602,0.01079632,88824.0,88816.0,0.07755483]
[1767185521959,0.01079632,88824.0,88817.0,0.0112591]
[1767185522185,0.01079632,88824.0,88816.0,0.01]
[1767185522378,0.01079632,88824.0,88816.0,0.009451]
[1767185522581,0.01128,88826.0,88816.0,0.009451]
[1767185523645,0.01028107,88826.0,88817.0,0.0112591]
[1767185523923,0.01128,88827.0,88819.0,0.01125885]
[1767185524134,0.01128,88827.0,88817.0,0.06755352]
[1767185524356,0.01128,88827.0,88818.0,0.06755362]
[1767185524528,0.01128,88827.0,88818.0,0.01125897]
[1767185524770,0.01128,88827.0,88817.0,0.06755352]
[1767185524992,0.01128,88827.0,88818.0,0.01125897]
[1767185525865,0.01128,88827.0,88817.0,0.0112591]
[1767185526083,0.01128,88827.0,88816.0,0.009451]
[1767185526211,0.01128,88827.0,88817.0,0.0112591]
[1767185526414,0.01128,88827.0,88818.0,0.05629489]
[1767185526620,0.01128,88827.0,88818.0,0.06755386]
[1767185526814,0.01128,88827.0,88818.0,0.01125897]
[1767185527051,0.01128,88827.0,88819.0,0.05629421]
[1767185527356,0.01128,88827.0,88820.0,0.01125872]
[1767185528457,0.01128,88827.0,88819.0,0.06755306]
[1767185528851,0.01128,88827.0,88817.0,0.06755348]
[1767185529253,0.13284,88828.0,88818.0,0.01125897]
[1767185529679,0.13284,88828.0,88816.0,0.009451]
[1767185530046,0.13284,88828.0,88818.0,0.01125897]
[1767185532509,0.13284,88828.0,88818.0,0.06755384]
[1767185532869,0.13284,88828.0,88817.0,0.06755414]
[1767185533296,0.13284,88828.0,88818.0,0.05629489]
[1767185533493,0.1329924,88828.0,88817.0,0.06755438]
[1767185533700,0.13279282,88828.0,88816.0,0.01125923]
[1767185533871,0.13279282,88828.0,88817.0,0.0112591]
[1767185534506,0.13279282,88828.0,88816.0,0.01125923]
[1767185534897,0.13279282,88828.0,88816.0,0.06755489]
[1767185535301,0.13279282,88828.0,88816.0,0.01125923]
[1767185536343,0.13279282,88828.0,88817.0,0.0112591]
[1767185536523,0.13279282,88828.0,88815.0,0.06755575]
[1767185536697,0.13279282,88828.0,88816.0,0.01125923]
[1767185536906,0.0001524,88828.0,88817.0,0.0112591]
[1767185537107,0.0001524,88828.0,88817.0,0.06755452]
[1767185537311,0.0001524,88828.0,88818.0,0.01125897]
[1767185537478,0.0001524,88828.0,88817.0,0.06755452]
[1767185539040,0.0001524,88828.0,88818.0,0.01125897]
[1767185540091,0.0001524,88828.0,88818.0,0.06755369]
[1767185540295,0.0001524,88828.0,88818.0,0.01125897]
[1767185540942,0.0001524,88828.0,88817.0,0.06755452]
[1767185541130,0.0001524,88828.0,88818.0,0.01125897]
[1767185541280,0.0001524,88828.0,88816.0,0.0675543]
[1767185541483,0.0001524,88828.0,88818.0,0.02]
[1767185544118,0.1424524,88828.0,88818.0,0.01945]
[1767185546237,0.1424524,88828.0,88815.0,0.01128]
[1767185546460,0.1423,88824.0,88815.0,0.01128]
[1767185546688,0.1423,88824.0,88798.0,0.04504]
[1767185546689,0.0002,88817.0,88808.0,0.01128]
[1767185546874,0.1423,88816.0,88806.0,0.01128]
[1767185547050,0.1423,88816.0,88805.0,0.01128]
[1767185547595,0.1423,88816.0,88805.0,0.01803814]
[1767185550001,0.141751,88816.0,88805.0,0.01803814]
[1767185550185,0.0002,88817.0,88805.0,0.01803814]
[1767185550388,0.0002,88817.0,88806.0,0.0112605]
[1767185550588,0.0002,88817.0,88807.0,0.01126037]
[1767185550847,0.26065185,88820.0,88806.0,0.06756296]
[1767185551005,0.26065185,88820.0,88806.0,0.0112605]
[1767185551201,0.1423,88821.0,88807.0,0.01126037]
[1767185551447,0.26065185,88820.0,88807.0,0.01126037]
[1767185551737,0.26065185,88820.0,88810.0,0.01125999]
[1767185551938,0.26065185,88820.0,88808.0,0.06756134]
[1767185552247,0.26065185,88820.0,88809.0,0.01126012]
[1767185552807,0.1423,88821.0,88809.0,0.01126012]
[1767185553971,0.1423,88821.0,88809.0,0.00010608]
[1767185555432,0.01128,88820.0,88809.0,0.00010608]
[1767185555632,0.27193185,88820.0,88809.0,0.00010608]
[1767185555754,0.27193185,88820.0,88809.0,0.0113662]
[1767185556184,0.27193185,88820.0,88809.0,0.00010608]
[1767185556386,0.26065185,88820.0,88809.0,0.00010608]
[1767185556606,0.01128,88819.0,88809.0,0.00010608]
[1767185557836,0.15358,88819.0,88809.0,0.00010608]
[1767185558352,0.15358,88819.0,88804.0,0.06756389]
[1767185558353,0.02748,88819.0,88804.0,0.01128]
[1767185558514,0.02772007,88819.0,88804.0,0.01128]
[1767185559403,0.26065185,88814.0,88804.0,0.01128]
[1767185559831,0.0001524,88816.0,88804.0,0.01128]
[1767185560038,0.1424524,88816.0,88804.0,0.01128]
[1767185561043,0.26065185,88814.0,88804.0,0.01128]
[1767185561707,0.26065185,88814.0,88804.0,0.02254075]
[1767185561897,0.1424524,88816.0,88804.0,0.01128]
[1767185564588,0.40295185,88814.0,88804.0,0.01128]
[1767185565915,0.40295185,88814.0,88794.0,0.13169]
[1767185565916,0.1423,88813.0,88794.0,0.13169]
[1767185566108,0.1423,88813.0,88795.0,0.01128]
[1767185566109,0.1423,88809.0,88795.0,0.01128]
[1767185566310,0.26065185,88805.0,88796.0,1.3506]
[1767185566510,0.1423,88809.0,88796.0,1.3506]
[1767185569150,0.1423,88809.0,88796.0,1.3216]
[1767185570319,0.1423,88809.0,88796.0,1.2584]
[1767185571355,0.1423,88809.0,88796.0,0.5324]
[1767185574067,0.26065185,88806.0,88790.0,0.06757465]
[1767185574268,0.25965292,88800.0,88789.0,0.01128]
[1767185574571,0.25965292,88800.0,88790.0,1.2011]
[1767185575216,0.1568,88802.0,88790.0,1.2011]
[1767185576000,0.26065185,88800.0,88790.0,1.2011]
[1767185576294,0.1568,88802.0,88790.0,1.2011]
[1767185576974,0.1568,88802.0,88790.0,0.9114]
[1767185577177,0.01128,88804.0,88785.0,1.7353575]
[1767185577178,0.1568,88799.0,88785.0,1.7353575]
[1767185577913,0.1568,88799.0,88786.0,0.9611]
[1767185578110,0.1568,88799.0,88788.0,1.6195]
[1767185578320,0.1568,88799.0,88789.0,0.9364]
[1767185578513,0.1568,88799.0,88786.0,0.06757794]
[1767185578678,0.1568,88799.0,88788.0,2.8718]
[1767185578869,0.1568,88799.0,88786.0,2.96787819]
[1767185579067,0.1568,88799.0,88786.0,1.5419]
[1767185579270,0.1568,88799.0,88786.0,1.4365]
[1767185579669,0.1568,88799.0,88785.0,1.729]
[1767185579873,0.1568,88799.0,88785.0,1.5117]
[1767185580060,0.1568,88799.0,88785.0,1.4867]
[1767185581627,0.1568,88799.0,88787.0,2.86176291]
[1767185581818,0.1568,88799.0,88788.0,3.5336]
[1767185582200,0.1568,88799.0,88789.0,3.5033]
[1767185582367,0.1568,88799.0,88790.0,3.81466252]
[1767185582573,0.1568,88799.0,88790.0,3.9034]
[1767185582777,0.1568,88799.0,88787.0,0.01126291]
[1767185582778,0.1568,88799.0,88782.0,0.01126354]
[1767185582973,0.1568,88799.0,88780.0,0.01126379]
[1767185583178,0.1568,88799.0,88781.0,0.01146367]
[1767185583418,0.1568,88799.0,88785.0,1.08636316]
[1767185583735,0.1568,88799.0,88783.0,0.02254341]
[1767185583936,0.1568,88799.0,88784.0,0.01141569]
[1767185584375,0.1568,88799.0,88784.0,0.067732]
[1767185584579,0.1568,88799.0,88784.0,0.0001524]
[1767185584782,0.1568,88799.0,88784.0,0.01141569]
[1767185585581,0.1568,88799.0,88784.0,0.0001524]
[1767185585779,0.1568,88799.0,88784.0,0.06773196]
[1767185586013,0.1568,88799.0,88784.0,0.0001524]
[1767185587430,0.26065185,88800.0,88784.0,0.0001524]
[1767185587431,0.1568,88793.0,88784.0,0.0001524]
[1767185589943,0.1568,88793.0,88782.0,0.01126354]
[1767185589944,0.1568,88793.0,88783.0,0.01126341]
[1767185590082,0.1568,88793.0,88784.0,0.06757969]
[1767185590280,0.0001316,88797.0,88793.0,0.000549]
[1767185590486,0.01128,88797.0,88793.0,0.153659]
[1767185590707,0.01128,88801.0,88796.0,0.0002]
[1767185590928,0.1568,88814.0,88796.0,0.05650881]
[1767185591081,0.16808,88813.0,88796.0,0.15564]
[1767185591780,0.16808,88813.0,88796.0,0.16690176]
[1767185592885,0.16808,88813.0,88797.0,0.01126164]
[1767185593087,0.16808,88813.0,88796.0,0.16690176]
[1767185593349,0.16808,88813.0,88796.0,0.15564]
[1767185593746,0.16808,88813.0,88796.0,0.16690176]
[1767185594539,0.16808,88813.0,88796.0,0.15564]
[1767185594755,0.16808,88813.0,88796.0,0.16690176]
[1767185594954,0.16808,88813.0,88796.0,0.15564]
[1767185595954,0.16808,88813.0,88796.0,0.22321004]
[1767185596157,0.16708107,88813.0,88798.0,0.15544]
[1767185597082,0.1568,88813.0,88798.0,0.15544]
[1767185597280,0.0001496,88815.0,88796.0,0.0002]
[1767185597281,0.15585159,88811.0,88796.0,0.0002]
[1767185598657,0.26079429,88810.0,88800.0,0.01126126]
[1767185599260,0.15585159,88811.0,88800.0,0.06756699]
[1767185599437,0.15585159,88811.0,88798.0,0.01126151]
[1767185599747,0.15585159,88811.0,88798.0,0.06756893]
[1767185599915,0.15585159,88811.0,88798.0,0.01126151]
[1767185600122,0.15585159,88811.0,88798.0,0.06756895]
[1767185600505,0.15585159,88811.0,88799.0,0.01126138]
[1767185600704,0.15585159,88811.0,88796.0,0.0002]
[1767185600931,0.42612429,88810.0,88798.0,0.01126151]
[1767185601139,0.42612429,88810.0,88797.0,0.01126164]
[1767185601307,0.42612429,88810.0,88797.0,0.06756935]
[1767185601535,0.42612429,88810.0,88801.0,0.05630553]
[1767185601536,0.16533,88810.0,88801.0,0.05630553]
[1767185601711,0.16533,88810.0,88802.0,0.011261]
[1767185601907,0.16533,88810.0,88800.0,0.26079429]
[1767185603490,0.42612429,88810.0,88793.0,0.01128]
[1767185603916,0.16533,88810.0,88793.0,0.01128]
[1767185604236,0.42612429,88810.0,88793.0,0.01128]
[1767185604437,0.42612429,88810.0,88793.0,0.02254214]
[1767185604670,0.42612429,88810.0,88794.0,0.01126202]
[1767185604882,0.42612429,88810.0,88793.0,0.02254214]
[1767185605298,0.42612429,88810.0,88793.0,0.01128]
[1767185607940,0.16533,88809.0,88793.0,0.01128]
[1767185612002,0.16533,88809.0,88793.0,0.02254214]
[1767185612524,0.16533,88809.0,88793.0,0.0788517]
[1767185612744,0.16533,88809.0,88793.0,0.02254214]
[1767185613120,0.16533,88809.0,88793.0,0.01128]
[1767185613326,0.16533,88809.0,88793.0,0.02254214]
[1767185613525,0.16533,88809.0,88793.0,0.01128]
[1767185615610,0.16533,88809.0,88793.0,0.02254214]
[1767185616156,0.16533,88809.0,88793.0,0.01128]
[1767185617766,0.16533,88809.0,88786.0,0.16607]
[1767185617963,0.16533,88805.0,88787.0,0.01128]
[1767185618166,0.42612429,88800.0,88788.0,0.9178]
[1767185618531,0.16533,88800.0,88788.0,0.9178]
[1767185618762,0.42612429,88800.0,88788.0,0.9178]
[1767185618955,0.16533,88799.0,88788.0,0.9178]
[1767185619156,0.16533,88799.0,88783.0,0.0114296]
[1767185619917,0.16533,88792.0,88783.0,0.0114296]
[1767185620992,0.16533,88792.0,88774.0,0.06773666]
[1767185620993,0.01126252,88790.0,88770.0,0.025]
[1767185621184,0.01126252,88790.0,88730.0,0.2]
[1767185621185,0.27205643,88793.0,88750.0,0.05633802]
[1767185621186,0.0112624,88791.0,88750.0,0.05633802]
[1767185621347,0.0112624,88791.0,88740.0,0.26079429]
[1767185621348,0.16533,88788.0,88770.0,0.26085004]
[1767185621780,0.16533,88788.0,88771.0,0.01126494]
[1767185622089,0.16533,88788.0,88772.0,0.01126481]
[1767185622297,0.16451007,88788.0,88777.0,0.01126417]
[1767185622448,0.010731,88787.0,88779.0,0.01126392]
[1767185622635,0.010731,88787.0,88780.0,0.01126379]
[1767185622837,0.010181,88787.0,88780.0,0.01126379]
[1767185623240,0.00936107,88787.0,88771.0,0.16607]
[1767185623462,0.17469107,88787.0,88777.0,0.01126417]
[1767185623843,0.17469107,88787.0,88776.0,0.0112643]
[1767185624341,0.17369214,88787.0,88778.0,0.01126405]
[1767185624946,0.165509,88787.0,88777.0,0.27225846]
[1767185625155,0.165509,88787.0,88777.0,0.0002]
[1767185625156,0.01128,88786.0,88777.0,0.0002]
[1767185625362,0.01028107,88786.0,88777.0,0.0002]
[1767185626271,0.01046007,88786.0,88777.0,0.0002]
[1767185626469,0.00946114,88786.0,88777.0,0.0002]
[1767185627553,0.00846221,88786.0,88777.0,0.0002]
[1767185627785,0.17379221,88786.0,88777.0,0.0002]
[1767185628235,0.26079429,88790.0,88777.0,0.0002]
[1767185628236,0.01128,88785.0,88777.0,0.0002]
[1767185628479,0.06756911,88798.0,88777.0,0.0002]
[1767185628480,0.16533,88815.0,88783.0,0.16607]
[1767185628618,0.0003038,88823.0,88778.0,0.01128]
[1767185628619,0.16533,88804.0,88788.0,0.01126278]
[1767185628871,0.26079429,88800.0,88789.0,0.01126265]
[1767185629032,0.17661,88804.0,88789.0,0.06757591]
[1767185629428,0.0002,88816.0,88793.0,0.01126214]
[1767185629634,0.18044,88814.0,88800.0,0.26079429]
[1767185629836,0.18044,88814.0,88800.0,0.23879235]
[1767185630011,0.18044,88809.0,88793.0,0.01126214]
[1767185630221,0.19172,88808.0,88794.0,0.01126202]
[1767185630370,0.19172,88808.0,88793.0,0.01126214]
[1767185630722,0.19172,88808.0,88791.0,0.16909]
[1767185630876,0.19207413,88808.0,88790.0,0.27225681]
[1767185631080,0.18079413,88808.0,88790.0,0.26099429]
[1767185631333,0.18044,88806.0,88791.0,0.0112624]
[1767185631531,0.01125923,88816.0,88790.0,0.27225681]
[1767185631532,0.01125796,88826.0,88801.0,0.01126113]
[1767185631720,0.000549,88801.0,88799.0,0.01126138]
[1767185632040,0.01128,88808.0,88800.0,0.01126126]
[1767185632217,0.01128,88808.0,88802.0,0.011261]
[1767185632751,0.16223005,88815.0,88802.0,0.05630503]
[1767185632957,0.17776107,88809.0,88797.0,0.01126164]
[1767185633162,0.17821,88809.0,88797.0,0.06756971]
[1767185633372,0.17821,88809.0,88800.0,0.01126126]
[1767185633568,0.16693,88809.0,88802.0,0.05630494]
[1767185633775,0.04508,88824.0,88799.0,0.01121875]
[1767185633776,0.16693,88825.0,88805.0,0.01126062]
[1767185633996,0.00062806,88828.0,88803.0,0.01126088]
[1767185633997,0.16622106,88817.0,88804.0,0.01126075]
[1767185634172,0.1775,88816.0,88804.0,0.01126075]
[1767185634573,0.1775,88816.0,88803.0,0.06756509]
[1767185634793,0.1775,88816.0,88803.0,0.01126088]
[1767185635131,0.1775,88816.0,88802.0,0.011261]
[1767185635539,0.26079429,88812.0,88800.0,0.01126126]
[1767185635734,0.25979536,88810.0,88800.0,0.01126126]
[1767185635966,0.25979536,88810.0,88799.0,0.23665781]
[1767185636282,0.16684,88809.0,88796.0,0.01126176]
[1767185636693,0.16684,88809.0,88795.0,0.2865]
[1767185636889,0.16684,88809.0,88795.0,0.2438]
[1767185637074,0.16684,88809.0,88795.0,0.01128]
[1767185637268,0.44123429,88805.0,88795.0,0.01128]
[1767185637525,0.26079429,88805.0,88795.0,0.01128]
[1767185637673,0.18044,88799.0,88788.0,0.2901]
[1767185637873,0.18044,88799.0,88788.0,0.2799]
[1767185638127,0.26079429,88798.0,88787.0,0.02254291]
[1767185638286,0.18044,88799.0,88787.0,0.01128]
[1767185638878,0.18054614,88799.0,88787.0,0.01128]
[1767185639275,0.18054614,88799.0,88784.0,0.931]
[1767185639529,0.18054614,88799.0,88785.0,0.927]
[1767185639693,0.18054614,88799.0,88785.0,0.868]
[1767185639902,0.26079429,88795.0,88785.0,0.868]
[1767185640105,0.18054614,88799.0,88783.0,0.01128]
[1767185640106,0.18054614,88799.0,88784.0,0.931]
[1767185643652,0.26079429,88794.0,88784.0,0.931]
[1767185644208,0.01128,88797.0,88784.0,0.931]
[1767185645583,0.26079429,88794.0,88784.0,0.7177]
[1767185646131,0.01128,88797.0,88784.0,0.7177]
[1767185646326,0.26079429,88794.0,88784.0,0.7177]
[1767185647381,0.26079429,88794.0,88783.0,0.01128]
[1767185647690,0.26079429,88794.0,88784.0,1.6044]
[1767185648466,0.26079429,88794.0,88784.0,1.3173]
[1767185650673,0.01128,88797.0,88784.0,1.37361591]
[1767185650875,0.26079429,88794.0,88785.0,3.741359]
[1767185651055,0.26079429,88794.0,88784.0,0.06757948]
[1767185651451,0.01128,88797.0,88785.0,0.01126316]
[1767185651617,0.26079429,88794.0,88786.0,0.01126303]
[1767185651822,0.26079429,88796.0,88786.0,0.01126303]
[1767185652035,0.01128,88797.0,88786.0,0.01126303]
[1767185652233,0.26079429,88796.0,88786.0,0.01126303]
[1767185652940,0.26079429,88796.0,88785.0,0.01126316]
[1767185653141,0.25879643,88796.0,88785.0,0.01126316]
[1767185653837,0.01128,88797.0,88785.0,0.0675789]
[1767185654242,0.01028107,88797.0,88785.0,2.741359]
[1767185654382,0.26079429,88795.0,88785.0,1.7765]
[1767185654583,0.26079429,88795.0,88784.0,1.7829]
[1767185654854,0.26079429,88795.0,88780.0,0.06786742]
[1767185654855,0.18044,88793.0,88780.0,0.0002858]
[1767185655026,0.26079429,88790.0,88780.0,0.0002858]
[1767185655223,0.01128,88789.0,88780.0,0.0002858]
[1767185658375,0.01128,88789.0,88780.0,0.00024407]
[1767185658778,0.01128,88788.0,88780.0,0.06782648]
[1767185658975,0.01128,88788.0,88780.0,0.01150786]
[1767185659809,0.01128,88788.0,88781.0,0.01126367]
[1767185659956,0.010731,88788.0,88781.0,0.01126367]
[1767185660141,0.010731,88788.0,88780.0,0.00024407]
[1767185660324,0.19748107,88787.0,88780.0,0.00024407]
[1767185661242,0.010731,88788.0,88780.0,0.00024407]
[1767185661458,0.00973207,88788.0,88780.0,0.00024407]
[1767185665086,0.00973207,88788.0,88780.0,0.01150786]
[1767185665298,0.00973207,88788.0,88781.0,0.01126367]
[1767185665514,0.00973207,88788.0,88780.0,0.00024407]
[1767185666299,0.20721314,88788.0,88780.0,0.00024407]
[1767185666747,0.20721314,88788.0,88780.0,7e-08]
[1767185669838,0.19848,88788.0,88780.0,7e-08]
[1767185670200,0.19848,88798.0,88780.0,0.20139007]
[1767185670548,0.26090837,88790.0,88780.0,0.20139007]
[1767185670750,0.26090837,88790.0,88780.0,7e-08]
[1767185672274,0.01128,88789.0,88780.0,7e-08]
[1767185676930,0.19848,88788.0,88780.0,7e-08]
[1767185678446,0.19848,88788.0,88777.0,0.0002]
[1767185678447,0.19848,88788.0,88777.0,7e-08]
[1767185678622,0.19848,88788.0,88766.0,0.01126557]
[1767185678826,0.01128,88789.0,88767.0,0.0002]
[1767185678827,0.19848,88779.0,88767.0,0.0002]
[1767185679216,0.20976,88778.0,88767.0,0.0002]
[1767185679411,0.20976,88778.0,88755.0,0.06072301]
[1767185679412,0.0002,88767.0,88757.0,0.21265671]
[1767185679611,0.0002,88767.0,88744.0,0.01128]
[1767185679612,0.01128,88766.0,88761.0,0.0112662]
[1767185679745,0.19788083,88774.0,88766.0,0.000794]
[1767185679944,0.0002,88775.0,88762.0,0.20139]
[1767185679945,0.01128,88773.0,88762.0,0.20139]
[1767185680731,0.0113278,88773.0,88762.0,0.20139]
[1767185680858,0.0113278,88773.0,88756.0,0.20139]
[1767185682301,0.26090837,88770.0,88756.0,0.20139]
[1767185682599,0.19848,88769.0,88755.0,0.0002]
[1767185683550,0.19848,88769.0,88755.0,0.20159]
[1767185687627,4.78e-05,88773.0,88755.0,0.0002]
[1767185687792,0.01128,88772.0,88756.0,0.20139]
[1767185691142,0.01128,88772.0,88751.0,0.21143]
[1767185691322,0.26090837,88770.0,88751.0,0.21143]
[1767185692323,0.22435,88772.0,88751.0,0.21143]
[1767185692837,0.22435,88772.0,88752.0,0.22269735]
[1767185693248,0.22435,88772.0,88754.0,0.21143]
[1767185693967,0.01128,88771.0,88754.0,0.21143]
[1767185694380,0.01128,88771.0,88754.0,0.22269709]
[1767185694581,0.01128,88771.0,88754.0,0.21143]
[1767185696606,0.26090837,88770.0,88754.0,0.21143]
[1767185696751,0.01128,88771.0,88740.0,2.741359]
[1767185696752,0.21307,88763.0,88740.0,2.741359]
[1767185696950,0.01126544,88767.0,88727.0,0.01148]
[1767185696951,0.000549,88754.0,88742.0,2.741359]
[1767185697150,0.01128,88754.0,88743.0,2.79770085]
[1767185697509,0.01128,88754.0,88744.0,0.21143]
[1767185697868,0.01128,88754.0,88744.0,0.22269836]
[1767185698214,0.01128,88754.0,88745.0,0.01126824]
[1767185698407,0.01128,88754.0,88746.0,0.01126811]
[1767185698761,0.01128,88754.0,88747.0,0.01126798]
[1767185699162,0.01128,88754.0,88745.0,0.06760931]
[1767185699384,0.01128,88754.0,88747.0,0.01126798]
[1767185699873,0.01128,88754.0,88745.0,0.01126824]
[1767185700258,0.01128,88754.0,88744.0,0.22269836]
[1767185700486,0.01128,88754.0,88744.0,0.21143]
[1767185700891,0.01128,88754.0,88744.0,0.22269836]
[1767185701083,0.01128,88754.0,88745.0,0.01126824]
[1767185701319,0.01128,88756.0,88747.0,0.21143]
[1767185701624,0.01128,88757.0,88747.0,0.06760742]
[1767185701823,0.04508,88770.0,88753.0,0.01126722]
[1767185701824,0.21207107,88769.0,88753.0,0.01126722]
[1767185702031,0.26153677,88780.0,88753.0,0.01126722]
[1767185702032,0.21307,88786.0,88760.0,0.21143]
[1767185702201,0.00055586,88790.0,88772.0,1.0321]
[1767185702384,0.01148,88787.0,88775.0,0.21143]
[1767185702583,0.01148,88787.0,88770.0,0.27902012]
[1767185702904,0.22385226,88787.0,88773.0,0.5985]
[1767185703117,0.22385226,88787.0,88772.0,0.6385]
[1767185703326,0.22385226,88787.0,88777.0,0.0002]
[1767185703491,0.22385226,88787.0,88771.0,0.6318]
[1767185703674,0.22385226,88787.0,88771.0,0.6164]
[1767185704002,0.22385226,88787.0,88772.0,0.6391]
[1767185704204,0.22385226,88787.0,88769.0,0.5975]
[1767185705011,0.22385226,88787.0,88769.0,0.271]
[1767185706837,0.22385226,88787.0,88770.0,2.732789]
[1767185707063,0.22385226,88787.0,88773.0,2.521359]
[1767185707264,0.22385226,88787.0,88771.0,2.53262394]
[1767185707429,0.22385226,88787.0,88772.0,2.521359]
[1767185707634,0.00055586,88790.0,88773.0,2.521359]
[1767185707865,0.01128,88789.0,88775.0,0.21143]
[1767185708080,0.01128,88789.0,88775.0,0.22271]
[1767185708881,0.01128,88789.0,88775.0,0.01128]
[1767185709247,0.01128,88789.0,88775.0,0.01108]
[1767185709468,0.21307,88784.0,88761.0,0.01128]
[1767185709673,0.21307,88779.0,88761.0,0.01128]
[1767185710017,0.22435,88779.0,88761.0,0.0225462]
[1767185710166,0.22435,88779.0,88762.0,0.01126608]
[1767185710564,0.22435,88779.0,88762.0,1.7095]
[1767185710769,0.22435,88779.0,88761.0,0.01128]
[1767185710950,0.22435,88779.0,88762.0,0.8141]
[1767185717420,0.22435,88779.0,88757.0,0.01126671]
[1767185717421,0.21307,88771.0,88757.0,0.01126671]
[1767185717619,0.01128,88770.0,88760.0,0.01126633]
[1767185718242,0.01128,88770.0,88760.0,0.06759785]
[1767185718444,0.01128,88770.0,88761.0,0.0112662]
[1767185718622,0.01028107,88770.0,88760.0,0.01126633]
[1767185718826,0.01028107,88770.0,88759.0,0.06759825]
[1767185719222,0.01028107,88770.0,88760.0,0.01126633]
[1767185719596,0.01028107,88770.0,88759.0,0.06759825]
[1767185719769,0.00928214,88770.0,88759.0,0.06759825]
[1767185719981,0.00928214,88770.0,88758.0,0.01126659]
[1767185720383,0.00928214,88770.0,88758.0,0.06759947]
[1767185720621,0.27028403,88770.0,88758.0,0.01126659]
[1767185720892,0.2692851,88770.0,88758.0,0.01126659]
[1767185721391,0.2692851,88770.0,88757.0,0.06764799]
[1767185721800,0.26828617,88770.0,88757.0,0.06764799]
[1767185722144,0.00728428,88770.0,88757.0,0.01131451]
[1767185722348,0.00728428,88770.0,88758.0,0.01126659]
[1767185722663,0.00728428,88770.0,88757.0,0.01131451]
[1767185722882,0.00628535,88770.0,88757.0,4.78e-05]
[1767185724103,0.00528642,88770.0,88757.0,4.78e-05]
[1767185725454,0.00528642,88770.0,88753.0,0.0002]
[1767185725455,0.24753105,88756.0,88753.0,0.0002]
[1767185725653,4.7e-05,88757.0,88753.0,0.00028788]
[1767185725968,0.01128,88760.0,88753.0,0.00028788]
[1767185726596,0.01028107,88760.0,88753.0,0.00028788]
[1767185726830,0.01028107,88760.0,88754.0,0.00791636]
[1767185727215,0.01028107,88760.0,88753.0,0.00028788]
[1767185727616,0.00928214,88760.0,88753.0,0.00028788]
[1767185728747,0.00828321,88760.0,88753.0,0.00028788]
[1767185729627,0.00728428,88760.0,88753.0,0.00028788]
[1767185730038,0.24853,88788.0,88761.0,2.061359]
[1767185730275,0.26100189,88780.0,88764.0,0.25457]
[1767185730479,0.01128,88779.0,88764.0,0.25457]
[1767185731074,0.24873,88784.0,88769.0,0.26100189]
[1767185731272,0.26100189,88780.0,88765.0,0.25437]
[1767185732705,0.26100189,88780.0,88765.0,0.2656357]
[1767185732871,0.26100189,88780.0,88765.0,0.25437]
[1767185733256,0.01128,88780.0,88765.0,0.2656357]
[1767185733473,0.01128,88780.0,88767.0,0.25437]
[1767185733668,0.01128,88780.0,88770.0,0.27226695]
[1767185733991,0.24873,88784.0,88770.0,0.26100189]
[1767185733992,0.01128,88782.0,88770.0,0.26100189]
[1767185734529,0.24873,88784.0,88770.0,0.32859182]
[1767185734743,0.01148,88784.0,88770.0,0.58296182]
[1767185735147,0.01148,88784.0,88771.0,0.01126494]
[1767185736837,0.01148,88784.0,88772.0,0.01126481]